[Event "98th Caplin Hastings Masters 2024-25"]
[Site "Hastings"]
[Date "2024.12.29"]
[Round "2.26"]
[White "Brown, Thomas"]
[Black "Ahn, Sungmin"]
[Result "1-0"]
[ECO "A46"]
[WhiteElo "2118"]
[BlackElo "1926"]
[Annotator "RC"]
[PlyCount "87"]
[EventDate "2024.12.23"]
[EventType "swiss"]
[EventCountry "ENG"]
[SourceTitle "playchess.com"]
[Source "ChessBase"]
[SourceQuality "1"]
[TimeControl "5400+30"]

1. d4 {[%emt 0:00:03]} Nf6 {[%emt 0:00:01]} 2. Nf3 {[%emt 0:00:13]} e6 {[%emt 0:00:09]} 3. Bf4 {[%emt 0:00:06]} c5 {[%emt 0:06:50]} 4. e3 {[%emt 0:00:47]} Nd5 {[%emt 0:00:03]} 5. Bg3 {[%emt 0:02:19]} Qb6 {[%emt 0:00:01]} 6. Qc1 {[%emt 0:03:39]} Nc6 {[%emt 0:02:48]} 7. c3 {[%emt 0:00:40]} Nf6 {[%emt 0:00:53]} 8. Bd3 {[%emt 0:01:56]} d5 {[%emt 0:00:11]} 9. Nbd2 {[%emt 0:00:21]} Bd7 {[%emt 0:01:05]} 10. O-O {[%emt 0:06:10]} Be7 {[%emt 0:01:23]} 11. dxc5 {[%emt 0:08:17]} Qxc5 {[%emt 0:01:38]} 12. b4 {[%emt 0:01:53]} Qb6 {[%emt 0:00:46]} 13. a4 {[%emt 0:01:18]} Rc8 {[%emt 0:01:12]} 14. Qb2 {[%emt 0:05:22]} Qd8 {[%emt 0:03:07]} 15. Ne5 {[%emt 0:03:28]} O-O {[%emt 0:03:45]} 16. Nxc6 {[%emt 0:03:34]} Bxc6 {[%emt 0:00:17]} 17. b5 {[%emt 0:02:15]} Be8 {[%emt 0:00:18]} 18. Be5 {[%emt 0:02:18]} Ng4 {[%emt 0:02:08]} 19. Bd4 {[%emt 0:02:21]} Qc7 {[%emt 0:04:37]} 20. g3 {[%emt 0:07:51]} Bf6 {[%emt 0:15:55]} 21. Be2 {[%emt 0:02:36]} Bxd4 {[%emt 0:06:35]} 22. cxd4 {[%emt 0:00:07]} Nf6 {[%emt 0:02:43]} 23. Rfc1 {[%emt 0:02:59]} Qd8 {[%emt 0:00:08]} 24. Rxc8 {[%emt 0:01:40]} Qxc8 {[%emt 0:00:01]} 25. Rc1 {[%emt 0:00:12]} Qd8 {[%emt 0:00:01]} 26. Qb4 {[%emt 0:02:32]} Bd7 {[%emt 0:02:05]} 27. Nf3 {[%emt 0:03:40]} Qb8 {[%emt 0:01:57]} 28. Ne5 {[%emt 0:04:09]} Rc8 {[%emt 0:01:05]} 29. Rc5 {[%emt 0:08:08]} b6 {[%emt 0:05:28]} 30. Rxc8+ {[%emt 0:02:37]} Qxc8 {[%emt 0:00:03]} 31. Qd6 {[%emt 0:01:54]} Qc1+ {[%emt 0:03:55]} 32. Bf1 {[%emt 0:02:59]} Be8 {[%emt 0:00:05]} 33. Qb8 {[%emt 0:01:27]} Qc2 {[%emt 0:21:11]} 34. Ng4 {[%emt 0:02:14]} Kf8 {[%emt 0:04:54]} 35. Nxf6 {[%emt 0:00:26]} gxf6 {[%emt 0:00:05]} 36. Qxa7 {[%emt 0:00:07]} Qd1 {[%emt 0:01:06]} 37. Qxb6 {[%emt 0:04:54]} Qxa4 {[%emt 0:00:29]} 38. Qd8 {[%emt 0:00:38]} Qb3 {[%emt 0:02:18]} 39. Qb8 {[%emt 0:03:32]} Ke7 {[%emt 0:00:42]} 40. Qc7+ {[%emt 0:00:09]} Kf8 {[%emt 0:00:53]} 41. b6 {[%emt 0:01:17]} Qb1 {[%emt 0:00:04]} 42. b7 {[%emt 0:00:29]} Bb5 {[%emt 0:00:28]} 43. b8=Q+ {[%emt 0:00:09]} Kg7 {[%emt 0:00:11]} 44. Qxb5 {[%emt 0:00:09]} 1-0

[Event "98th Caplin Hastings Masters 2024-25"]
[Site "Hastings"]
[Date "2024.12.29"]
[Round "2.27"]
[White "Dette, Jan"]
[Black "Jukes, Sam"]
[Result "1-0"]
[ECO "C44"]
[WhiteElo "2102"]
[BlackElo "1911"]
[Annotator "RC"]
[PlyCount "75"]
[EventDate "2024.12.23"]
[EventType "swiss"]
[EventCountry "ENG"]
[SourceTitle "playchess.com"]
[Source "ChessBase"]
[SourceQuality "1"]
[TimeControl "5400+30"]

1. e4 {[%emt 0:00:03]} e5 {[%emt 0:00:20]} 2. Nf3 {[%emt 0:00:05]} Nc6 {[%emt 0:00:05]} 3. d4 {[%emt 0:00:05]} exd4 {[%emt 0:00:05]} 4. Bc4 {[%emt 0:00:05]} Nf6 {[%emt 0:00:58]} 5. e5 {[%emt 0:00:23]} d5 {[%emt 0:00:26]} 6. Bb5 {[%emt 0:00:12]} Nd7 {[%emt 0:00:38]} 7. O-O {[%emt 0:00:39]} Be7 {[%emt 0:00:22]} 8. Bxc6 {[%emt 0:01:49]} bxc6 {[%emt 0:00:12]} 9. Nxd4 {[%emt 0:00:10]} Nb8 {[%emt 0:00:25]} 10. Re1 {[%emt 0:09:31]} c5 {[%emt 0:07:33]} 11. Nb5 {[%emt 0:00:09]} c6 {[%emt 0:00:17]} 12. Nd6+ {[%emt 0:14:21]} Bxd6 {[%emt 0:00:42]} 13. exd6+ {[%emt 0:00:06]} Be6 {[%emt 0:01:11]} 14. Bf4 {[%emt 0:00:28]} O-O {[%emt 0:01:17]} 15. Nd2 {[%emt 0:06:30]} Qf6 {[%emt 0:14:13]} 16. Be5 {[%emt 0:01:06]} Qg6 {[%emt 0:00:18]} 17. Re3 {[%emt 0:07:28]} f6 {[%emt 0:03:48]} 18. Bg3 {[%emt 0:02:48]} Bg4 {[%emt 0:04:59]} 19. f3 {[%emt 0:02:24]} Bf5 {[%emt 0:00:34]} 20. c4 {[%emt 0:04:32]} d4 {[%emt 0:05:51]} 21. Re7 {[%emt 0:00:06]} Bc2 {[%emt 0:10:26]} 22. Qe2 {[%emt 0:00:29]} Bf5 {[%emt 0:04:13]} 23. Re1 {[%emt 0:03:22]} Nd7 {[%emt 0:01:17]} 24. Nf1 {[%emt 0:05:33]} a5 {[%emt 0:06:45]} 25. Bf4 {[%emt 0:00:26]} h5 {[%emt 0:04:30]} 26. Ng3 {[%emt 0:00:43]} Rad8 {[%emt 0:03:08]} 27. Bd2 {[%emt 0:09:34]} Ne5 {[%emt 0:04:22]} 28. Nxf5 {[%emt 0:06:50]} Qxf5 {[%emt 0:00:14]} 29. f4 {[%emt 0:04:12]} Nf7 {[%emt 0:15:14]} 30. Bxa5 {[%emt 0:01:10]} Ra8 {[%emt 0:05:09]} 31. d7 {[%emt 0:01:26]} Nd6 {[%emt 0:05:19]} 32. Bc7 {[%emt 0:07:47]} d3 {[%emt 0:00:06]} 33. Qf3 {[%emt 0:01:38]} d2 {[%emt 0:00:29]} 34. Rd1 {[%emt 0:01:33]} Nxc4 {[%emt 0:00:31]} 35. b3 {[%emt 0:02:52]} Nb2 {[%emt 0:01:19]} 36. Rxd2 {[%emt 0:00:10]} Rxa2 {[%emt 0:00:34]} 37. d8=Q {[%emt 0:01:30]} Ra1+ {[%emt 0:00:34]} 38. Kf2 {[%emt 0:00:11]} 1-0

[Event "98th Caplin Hastings Masters 2024-25"]
[Site "Hastings"]
[Date "2024.12.29"]
[Round "2.28"]
[White "Verbin, Valentina"]
[Black "Sasikumar, Srivathsan"]
[Result "1-0"]
[ECO "B30"]
[WhiteElo "2093"]
[BlackElo "1904"]
[Annotator "NA RC"]
[PlyCount "67"]
[EventDate "2024.12.23"]
[EventType "swiss"]
[EventCountry "ENG"]
[SourceTitle "playchess.com"]
[Source "ChessBase"]
[SourceQuality "1"]
[TimeControl "5400+30"]

1. e4 {[%emt 0:00:38]} c5 {[%emt 0:00:14]} 2. Nf3 {[%emt 0:00:13]} Nc6 {[%emt 0:00:05]} 3. Bb5 {[%emt 0:00:08]} e6 {[%emt 0:00:10]} 4. Bxc6 {[%emt 0:00:09]} bxc6 {[%emt 0:00:07]} 5. b3 {[%emt 0:00:09]} d6 {[%emt 0:01:00]} 6. e5 {[%emt 0:00:55]} d5 {[%emt 0:00:07]} 7. d3 {[%emt 0:03:07]} Ne7 {[%emt 0:02:01]} 8. Nbd2 {[%emt 0:02:52]} Ng6 {[%emt 0:02:01]} 9. Qe2 {[%emt 0:01:02]} Nf4 {[%emt 0:02:30]} 10. Qf1 {[%emt 0:00:03]} f6 {[%emt 0:04:25]} 11. Bb2 {[%emt 0:02:57]} Be7 {[%emt 0:01:14]} 12. h4 {[%emt 0:08:16]} Ng6 {[%emt 0:08:38]} 13. O-O-O {[%emt 0:05:14]} Nxe5 {[%emt 0:04:43]} 14. Nxe5 {[%emt 0:02:10]} fxe5 {[%emt 0:00:06]} 15. Bxe5 {[%emt 0:16:40]} Bf6 {[%emt 0:03:16]} 16. Qe2 {[%emt 0:09:26]} a5 {[%emt 0:05:50]} 17. a4 {[%emt 0:03:53]} O-O {[%emt 0:02:57]} 18. Nf3 {[%emt 0:09:59]} Ba6 {[%emt 0:09:22]} 19. Qe3 {[%emt 0:11:20]} Qe7 {[%emt 0:04:35]} 20. c4 {[%emt 0:04:23]} Qb7 {[%emt 0:07:43]} 21. Kc2 {[%emt 0:01:20]} Bxe5 {[%emt 0:24:57]} 22. Nxe5 {[%emt 0:01:11]} Rab8 {[%emt 0:00:04]} 23. Rb1 {[%emt 0:00:35]} d4 {[%emt 0:02:06]} 24. Qe1 {[%emt 0:01:47]} Qc7 {[%emt 0:01:13]} 25. Rf1 {[%emt 0:04:32]} Rb4 {[%emt 0:01:57]} 26. f4 {[%emt 0:00:38]} Rfb8 {[%emt 0:02:19]} 27. Qe4 {[%emt 0:04:02]} R4b6 {[%emt 0:08:23]} 28. Nf3 {[%emt 0:02:38]} h6 {[%emt 0:01:56]} 29. Qxe6+ {[%emt 0:00:36]} Kh8 {[%emt 0:00:11]} 30. Ne5 {[%emt 0:01:36]} R6b7 {[%emt 0:00:48]} 31. f5 {[%emt 0:01:16]} Rc8 {[%emt 0:00:30]} 32. f6 {[%emt 0:00:34]} Rbb8 {[%emt 0:00:29]} 33. Nf7+ {[%emt 0:01:18]} Kh7 {[%emt 0:00:11]} 34. fxg7 {[%emt 0:00:08]} 1-0

[Event "98th Caplin Hastings Masters 2024-25"]
[Site "Hastings"]
[Date "2024.12.29"]
[Round "2.29"]
[White "Dewangan, Aayush"]
[Black "Bharat Kumar, Balahari"]
[Result "0-1"]
[ECO "B06"]
[WhiteElo "1878"]
[BlackElo "2063"]
[Annotator "NA RC"]
[PlyCount "98"]
[EventDate "2024.12.23"]
[EventType "swiss"]
[EventCountry "ENG"]
[SourceTitle "playchess.com"]
[Source "ChessBase"]
[SourceQuality "1"]
[TimeControl "5400+30"]

1. e4 {[%emt 0:00:08]} g6 {[%emt 0:01:14]} 2. d4 {[%emt 0:00:50]} Bg7 {[%emt 0:00:13]} 3. Nf3 {[%emt 0:01:08]} d6 {[%emt 0:00:30]} 4. Bf4 {[%emt 0:02:04]} a6 {[%emt 0:00:31]} 5. a4 {[%emt 0:04:11]} b6 {[%emt 0:01:05]} 6. c3 {[%emt 0:02:31]} Bb7 {[%emt 0:00:47]} 7. Bd3 {[%emt 0:01:10]} Nd7 {[%emt 0:01:58]} 8. Qe2 {[%emt 0:03:07]} e6 {[%emt 0:03:13]} 9. O-O {[%emt 0:01:38]} Ne7 {[%emt 0:09:51]} 10. Nbd2 {[%emt 0:02:14]} O-O {[%emt 0:02:22]} 11. e5 {[%emt 0:05:59]} Nd5 {[%emt 0:11:40]} 12. Bg3 {[%emt 0:01:15]} dxe5 {[%emt 0:08:01]} 13. Nxe5 {[%emt 0:00:27]} N7f6 {[%emt 0:13:33]} 14. Ndc4 {[%emt 0:15:34]} Nh5 {[%emt 0:08:42]} 15. Qd2 {[%emt 0:02:16]} Nxg3 {[%emt 0:04:57]} 16. hxg3 {[%emt 0:00:55]} Rc8 {[%emt 0:04:20]} 17. b4 {[%emt 0:09:47]} c5 {[%emt 0:11:36]} 18. bxc5 {[%emt 0:08:03]} bxc5 {[%emt 0:00:26]} 19. Rab1 {[%emt 0:00:34]} Ba8 {[%emt 0:07:36]} 20. Rfc1 {[%emt 0:02:40]} Qe7 {[%emt 0:04:01]} 21. Rb3 {[%emt 0:10:22]} Qa7 {[%emt 0:02:52]} 22. Be4 {[%emt 0:03:57]} Rfd8 {[%emt 0:01:26]} 23. Bf3 {[%emt 0:13:59]} cxd4 {[%emt 0:00:30]} 24. cxd4 {[%emt 0:00:33]} Rb8 {[%emt 0:00:30]} 25. Rcb1 {[%emt 0:00:15]} Rxb3 {[%emt 0:00:30]} 26. Rxb3 {[%emt 0:00:03]} Qe7 {[%emt 0:00:32]} 27. Qb2 {[%emt 0:01:35]} Qc7 {[%emt 0:00:29]} 28. Qa3 {[%emt 0:01:56]} f6 {[%emt 0:00:31]} 29. Bg4 {[%emt 0:04:45]} fxe5 {[%emt 0:00:09]} 30. Bxe6+ {[%emt 0:00:02]} Kh8 {[%emt 0:00:07]} 31. Nd2 {[%emt 0:01:09]} exd4 {[%emt 0:00:56]} 32. Nf3 {[%emt 0:00:02]} h6 {[%emt 0:00:49]} 33. Nh4 {[%emt 0:00:28]} Kh7 {[%emt 0:00:21]} 34. Rf3 {[%emt 0:00:02]} Qe7 {[%emt 0:00:39]} 35. Bf7 {[%emt 0:01:07]} Qxa3 {[%emt 0:00:30]} 36. Bxg6+ {[%emt 0:00:02]} Kh8 {[%emt 0:00:27]} 37. Rxa3 {[%emt 0:00:02]} Ne7 {[%emt 0:00:32]} 38. Bd3 {[%emt 0:00:11]} a5 {[%emt 0:00:31]} 39. f4 {[%emt 0:01:18]} Bf6 {[%emt 0:00:29]} 40. Kf2 {[%emt 0:00:41]} Rb8 {[%emt 0:00:23]} 41. Bb5 {[%emt 0:00:10]} Rc8 {[%emt 0:00:36]} 42. Ke2 {[%emt 0:01:29]} Rc2+ {[%emt 0:00:31]} 43. Kd3 {[%emt 0:00:00]} Rc3+ {[%emt 0:00:31]} 44. Rxc3 {[%emt 0:00:02]} dxc3 {[%emt 0:00:05]} 45. Bc4 {[%emt 0:00:35]} Nc6 {[%emt 0:00:49]} 46. Kc2 {[%emt 0:01:09]} Nb4+ {[%emt 0:00:17]} 47. Kc1 {[%emt 0:00:01]} Be4 {[%emt 0:00:43]} 48. f5 {[%emt 0:00:36]} Bg5+ {[%emt 0:00:13]} 49. Kd1 {[%emt 0:00:06]} c2+ {[%emt 0:00:05]} 0-1

[Event "98th Caplin Hastings Masters 2024-25"]
[Site "Hastings"]
[Date "2024.12.29"]
[Round "2.30"]
[White "Abrahams, Daniel"]
[Black "Pick, Freddie"]
[Result "1/2-1/2"]
[ECO "E62"]
[WhiteElo "2072"]
[BlackElo "1874"]
[Annotator "NA RC"]
[PlyCount "104"]
[EventDate "2024.12.23"]
[EventType "swiss"]
[EventCountry "ENG"]
[SourceTitle "playchess.com"]
[Source "ChessBase"]
[SourceQuality "1"]
[TimeControl "5400+30"]

1. d4 {[%emt 0:00:03]} Nf6 {[%emt 0:00:05]} 2. c4 {[%emt 0:00:08]} g6 {[%emt 0:00:03]} 3. Nf3 {[%emt 0:00:27]} Bg7 {[%emt 0:00:03]} 4. g3 {[%emt 0:00:12]} O-O {[%emt 0:00:05]} 5. Bg2 {[%emt 0:00:07]} d6 {[%emt 0:00:03]} 6. O-O {[%emt 0:00:34]} Nc6 {[%emt 0:00:04]} 7. Nc3 {[%emt 0:00:24]} e5 {[%emt 0:00:05]} 8. d5 {[%emt 0:00:17]} Ne7 {[%emt 0:00:04]} 9. e4 {[%emt 0:00:20]} Nd7 {[%emt 0:00:19]} 10. b4 {[%emt 0:01:06]} a5 {[%emt 0:04:31]} 11. Ba3 {[%emt 0:00:40]} b6 {[%emt 0:01:25]} 12. bxa5 {[%emt 0:04:57]} Rxa5 {[%emt 0:03:50]} 13. Bb4 {[%emt 0:03:15]} Ra8 {[%emt 0:00:53]} 14. a4 {[%emt 0:00:12]} Nc5 {[%emt 0:03:37]} 15. Qc2 {[%emt 0:07:55]} f5 {[%emt 0:07:52]} 16. Bxc5 {[%emt 0:01:56]} bxc5 {[%emt 0:01:55]} 17. Ng5 {[%emt 0:00:23]} Nc6 {[%emt 0:00:12]} 18. dxc6 {[%emt 0:01:40]} Qxg5 {[%emt 0:01:15]} 19. Nd5 {[%emt 0:00:16]} Rf7 {[%emt 0:04:38]} 20. Rfb1 {[%emt 0:00:56]} Be6 {[%emt 0:11:00]} 21. a5 {[%emt 0:06:32]} Bxd5 {[%emt 0:07:01]} 22. cxd5 {[%emt 0:01:37]} fxe4 {[%emt 0:04:28]} 23. Bxe4 {[%emt 0:04:59]} Bh6 {[%emt 0:02:13]} 24. a6 {[%emt 0:02:25]} Qe7 {[%emt 0:04:17]} 25. a7 {[%emt 0:00:33]} Rff8 {[%emt 0:01:34]} 26. Rb7 {[%emt 0:00:24]} Qf7 {[%emt 0:01:21]} 27. Rab1 {[%emt 0:01:21]} Kg7 {[%emt 0:00:40]} 28. Qe2 {[%emt 0:01:22]} c4 {[%emt 0:01:01]} 29. Rf1 {[%emt 0:05:46]} c3 {[%emt 0:01:45]} 30. Qg4 {[%emt 0:01:40]} Be3 {[%emt 0:01:53]} 31. Qd7 {[%emt 0:02:17]} Bb6 {[%emt 0:06:24]} 32. Rb1 {[%emt 0:06:26]} Qxd7 {[%emt 0:04:43]} 33. cxd7 {[%emt 0:00:13]} Rfd8 {[%emt 0:00:02]} 34. Rb3 {[%emt 0:02:14]} Kf6 {[%emt 0:01:16]} 35. Bd3 {[%emt 0:04:46]} Ke7 {[%emt 0:02:25]} 36. Bb5 {[%emt 0:02:48]} Rxa7 {[%emt 0:02:29]} 37. Rxa7 {[%emt 0:00:19]} Bxa7 {[%emt 0:00:05]} 38. Rxc3 {[%emt 0:00:04]} Bc5 {[%emt 0:00:20]} 39. Rf3 {[%emt 0:00:57]} Ra8 {[%emt 0:01:19]} 40. Bc6 {[%emt 0:02:26]} Rb8 {[%emt 0:00:33]} 41. Kg2 {[%emt 0:01:01]} h6 {[%emt 0:00:31]} 42. g4 {[%emt 0:00:56]} g5 {[%emt 0:02:25]} 43. Rf5 {[%emt 0:00:13]} e4 {[%emt 0:01:29]} 44. h4 {[%emt 0:00:59]} Rg8 {[%emt 0:02:02]} 45. hxg5 {[%emt 0:04:12]} hxg5 {[%emt 0:00:06]} 46. Kf1 {[%emt 0:00:11]} e3 {[%emt 0:01:46]} 47. f4 {[%emt 0:08:29]} Rb8 {[%emt 0:04:21]} 48. fxg5 {[%emt 0:00:59]} Rb2 {[%emt 0:01:15]} 49. d8=Q+ {[%emt 0:03:09]} Kxd8 {[%emt 0:00:17]} 50. Rf8+ {[%emt 0:00:06]} Ke7 {[%emt 0:00:09]} 51. Re8+ {[%emt 0:00:03]} Kf7 {[%emt 0:00:07]} 52. Re6 {[%emt 0:00:49]} e2+ {[%emt 0:00:15]} 1/2-1/2

[Event "98th Caplin Hastings Masters 2024-25"]
[Site "Hastings"]
[Date "2024.12.29"]
[Round "2.31"]
[White "Rubeck, Jonathan"]
[Black "Burrows, Martin P"]
[Result "0-1"]
[ECO "B23"]
[WhiteElo "1824"]
[BlackElo "2042"]
[Annotator "NA RC"]
[PlyCount "108"]
[EventDate "2024.12.23"]
[EventType "swiss"]
[EventCountry "ENG"]
[SourceTitle "playchess.com"]
[Source "ChessBase"]
[SourceQuality "1"]
[TimeControl "5400+30"]

1. e4 {[%emt 0:00:03]} c5 {[%emt 0:00:05]} 2. Nc3 {[%emt 0:00:36]} Nc6 {[%emt 0:00:09]} 3. f4 {[%emt 0:00:18]} g6 {[%emt 0:00:06]} 4. Nf3 {[%emt 0:00:13]} Bg7 {[%emt 0:00:09]} 5. Bc4 {[%emt 0:00:17]} e6 {[%emt 0:00:22]} 6. O-O {[%emt 0:00:28]} Nge7 {[%emt 0:00:28]} 7. d3 {[%emt 0:01:00]} d5 {[%emt 0:00:44]} 8. Bb3 {[%emt 0:00:39]} O-O {[%emt 0:00:37]} 9. Qe1 {[%emt 0:01:12]} Na5 {[%emt 0:01:03]} 10. Bd2 {[%emt 0:04:44]} Nxb3 {[%emt 0:01:21]} 11. axb3 {[%emt 0:00:19]} Nc6 {[%emt 0:00:30]} 12. Rc1 {[%emt 0:05:50]} b6 {[%emt 0:11:26]} 13. Qg3 {[%emt 0:02:45]} dxe4 {[%emt 0:04:16]} 14. dxe4 {[%emt 0:01:54]} Nd4 {[%emt 0:00:41]} 15. Nxd4 {[%emt 0:04:37]} cxd4 {[%emt 0:00:50]} 16. Nd1 {[%emt 0:02:07]} Bb7 {[%emt 0:05:48]} 17. Nf2 {[%emt 0:01:26]} Qd7 {[%emt 0:00:27]} 18. Rfe1 {[%emt 0:02:24]} Rfe8 {[%emt 0:09:27]} 19. e5 {[%emt 0:08:40]} f5 {[%emt 0:07:16]} 20. exf6 {[%emt 0:09:13]} Bxf6 {[%emt 0:00:12]} 21. Ng4 {[%emt 0:01:09]} Bg7 {[%emt 0:00:21]} 22. Ne5 {[%emt 0:00:18]} Qd5 {[%emt 0:00:49]} 23. Rcd1 {[%emt 0:04:22]} Rad8 {[%emt 0:09:29]} 24. Bc1 {[%emt 0:06:46]} Qc5 {[%emt 0:01:24]} 25. Qf2 {[%emt 0:03:37]} Rd5 {[%emt 0:05:40]} 26. Nd3 {[%emt 0:04:34]} Qc8 {[%emt 0:02:57]} 27. Ne5 {[%emt 0:04:12]} Rf8 {[%emt 0:05:03]} 28. Qe2 {[%emt 0:04:28]} Rc5 {[%emt 0:03:54]} 29. c4 {[%emt 0:02:25]} dxc3 {[%emt 0:12:20]} 30. Nd7 {[%emt 0:01:08]} Bd5 {[%emt 0:05:52]} 31. Nxc5 {[%emt 0:04:27]} Qxc5+ {[%emt 0:00:02]} 32. Be3 {[%emt 0:00:14]} Qe7 {[%emt 0:01:34]} 33. bxc3 {[%emt 0:01:53]} Bxc3 {[%emt 0:00:46]} 34. Rf1 {[%emt 0:02:32]} Bxb3 {[%emt 0:02:08]} 35. Rc1 {[%emt 0:00:35]} Bg7 {[%emt 0:00:25]} 36. Qa6 {[%emt 0:02:12]} Bd5 {[%emt 0:00:32]} 37. Rc8 {[%emt 0:01:01]} Qb4 {[%emt 0:03:05]} 38. Rxf8+ {[%emt 0:02:41]} Bxf8 {[%emt 0:00:02]} 39. Qxa7 {[%emt 0:01:37]} Qe4 {[%emt 0:02:11]} 40. Rf3 {[%emt 0:00:09]} Qb1+ {[%emt 0:01:18]} 41. Rf1 {[%emt 0:00:11]} Qc2 {[%emt 0:01:06]} 42. Rf2 {[%emt 0:00:38]} Qd1+ {[%emt 0:00:41]} 43. Rf1 {[%emt 0:00:17]} Qe2 {[%emt 0:00:25]} 44. Rf2 {[%emt 0:03:19]} Qe1+ {[%emt 0:00:29]} 45. Rf1 {[%emt 0:00:16]} Qxe3+ {[%emt 0:00:01]} 46. Kh1 {[%emt 0:00:33]} Qe4 {[%emt 0:01:06]} 47. Rg1 {[%emt 0:00:12]} Bc5 {[%emt 0:02:00]} 48. Qb8+ {[%emt 0:00:08]} Kg7 {[%emt 0:00:38]} 49. Qd8 {[%emt 0:01:01]} Qxf4 {[%emt 0:00:48]} 50. Ra1 {[%emt 0:01:01]} Bxg2+ {[%emt 0:00:56]} 51. Kxg2 {[%emt 0:00:05]} Qf2+ {[%emt 0:00:45]} 52. Kh3 {[%emt 0:00:18]} Qf3+ {[%emt 0:00:20]} 53. Kh4 {[%emt 0:00:05]} Bf2+ {[%emt 0:00:28]} 54. Kg5 {[%emt 0:00:07]} Qf5# {[%emt 0:00:10]} 0-1

[Event "98th Caplin Hastings Masters 2024-25"]
[Site "Hastings"]
[Date "2024.12.29"]
[Round "2.32"]
[White "Byron, Alan M"]
[Black "Chapman, Luke"]
[Result "1-0"]
[ECO "B30"]
[WhiteElo "2069"]
[BlackElo "1706"]
[Annotator "NA RC"]
[PlyCount "39"]
[EventDate "2024.12.23"]
[EventType "swiss"]
[EventCountry "ENG"]
[SourceTitle "playchess.com"]
[Source "ChessBase"]
[SourceQuality "1"]
[TimeControl "5400+30"]

1. e4 {[%emt 0:00:03]} c5 {[%emt 0:00:05]} 2. Nf3 {[%emt 0:00:07]} Nc6 {[%emt 0:00:03]} 3. Bb5 {[%emt 0:00:44]} Nf6 {[%emt 0:00:07]} 4. e5 {[%emt 0:01:43]} Ng4 {[%emt 0:01:16]} 5. Bxc6 {[%emt 0:01:30]} dxc6 {[%emt 0:00:06]} 6. O-O {[%emt 0:03:32]} g6 {[%emt 0:02:52]} 7. h3 {[%emt 0:00:14]} Nh6 {[%emt 0:00:06]} 8. Qe2 {[%emt 0:07:26]} Bg7 {[%emt 0:04:05]} 9. c3 {[%emt 0:04:32]} O-O {[%emt 0:03:19]} 10. d4 {[%emt 0:01:39]} cxd4 {[%emt 0:00:22]} 11. cxd4 {[%emt 0:00:17]} f6 {[%emt 0:06:18]} 12. Nc3 {[%emt 0:01:45]} Nf7 {[%emt 0:01:59]} 13. e6 {[%emt 0:11:42]} Nd6 {[%emt 0:01:06]} 14. Bf4 {[%emt 0:00:44]} f5 {[%emt 0:00:59]} 15. Be5 {[%emt 0:15:36]} Bxe6 {[%emt 0:13:26]} 16. Bxg7 {[%emt 0:04:26]} Bc4 {[%emt 0:00:17]} 17. Qe5 {[%emt 0:01:35]} Nf7 {[%emt 0:00:09]} 18. Qc5 {[%emt 0:00:08]} Kxg7 {[%emt 0:05:27]} 19. Qxc4 {[%emt 0:01:10]} Nd6 {[%emt 0:00:55]} 20. Qe2 {[%emt 0:00:26]} 1-0

[Event "98th Caplin Hastings Masters 2024-25"]
[Site "Hastings"]
[Date "2024.12.29"]
[Round "2.33"]
[White "Kim, Yegeon"]
[Black "Verbytski, Oleg"]
[Result "0-1"]
[ECO "B52"]
[WhiteElo "1697"]
[BlackElo "2033"]
[Annotator "NA RC"]
[PlyCount "100"]
[EventDate "2024.12.23"]
[EventType "swiss"]
[EventCountry "ENG"]
[SourceTitle "playchess.com"]
[Source "ChessBase"]
[SourceQuality "1"]
[TimeControl "5400+30"]

1. e4 {[%emt 0:00:03]} c5 {[%emt 0:00:03]} 2. Nf3 {[%emt 0:00:05]} d6 {[%emt 0:00:03]} 3. Bb5+ {[%emt 0:00:06]} Bd7 {[%emt 0:00:04]} 4. Bxd7+ {[%emt 0:00:05]} Qxd7 {[%emt 0:00:04]} 5. c4 {[%emt 0:00:05]} g6 {[%emt 0:00:22]} 6. Nc3 {[%emt 0:00:42]} Bg7 {[%emt 0:00:09]} 7. d4 {[%emt 0:00:27]} cxd4 {[%emt 0:00:21]} 8. Nxd4 {[%emt 0:00:05]} Nc6 {[%emt 0:00:19]} 9. Be3 {[%emt 0:00:36]} Nf6 {[%emt 0:00:19]} 10. f3 {[%emt 0:00:06]} O-O {[%emt 0:00:09]} 11. O-O {[%emt 0:00:07]} Rac8 {[%emt 0:00:36]} 12. b3 {[%emt 0:01:12]} a6 {[%emt 0:00:57]} 13. Qd3 {[%emt 0:03:41]} Rb8 {[%emt 0:04:50]} 14. Rac1 {[%emt 0:05:12]} Nxd4 {[%emt 0:00:41]} 15. Bxd4 {[%emt 0:01:37]} b5 {[%emt 0:00:13]} 16. Bxf6 {[%emt 0:10:35]} bxc4 {[%emt 0:13:12]} 17. Qxc4 {[%emt 0:04:13]} Qa7+ {[%emt 0:00:50]} 18. Kh1 {[%emt 0:00:37]} Rfc8 {[%emt 0:00:06]} 19. Qd3 {[%emt 0:09:42]} Bxf6 {[%emt 0:00:06]} 20. Nd5 {[%emt 0:00:29]} Bg7 {[%emt 0:00:55]} 21. Rc4 {[%emt 0:02:33]} Rxc4 {[%emt 0:07:44]} 22. Qxc4 {[%emt 0:00:46]} a5 {[%emt 0:00:34]} 23. Rc1 {[%emt 0:07:34]} e6 {[%emt 0:01:29]} 24. Nc3 {[%emt 0:02:16]} Qe3 {[%emt 0:04:04]} 25. Ne2 {[%emt 0:14:38]} d5 {[%emt 0:03:30]} 26. exd5 {[%emt 0:01:03]} exd5 {[%emt 0:00:05]} 27. Qf4 {[%emt 0:00:10]} Qxf4 {[%emt 0:00:42]} 28. Nxf4 {[%emt 0:00:07]} Bh6 {[%emt 0:00:05]} 29. g3 {[%emt 0:01:23]} Rd8 {[%emt 0:01:19]} 30. Rd1 {[%emt 0:03:37]} Bxf4 {[%emt 0:00:11]} 31. gxf4 {[%emt 0:00:04]} d4 {[%emt 0:00:19]} 32. Kg2 {[%emt 0:02:31]} Kg7 {[%emt 0:00:24]} 33. f5 {[%emt 0:10:59]} g5 {[%emt 0:02:42]} 34. Kg3 {[%emt 0:01:10]} Kf6 {[%emt 0:00:46]} 35. a3 {[%emt 0:13:32]} Kxf5 {[%emt 0:00:13]} 36. b4 {[%emt 0:00:33]} axb4 {[%emt 0:01:00]} 37. axb4 {[%emt 0:00:02]} h5 {[%emt 0:00:13]} 38. h4 {[%emt 0:02:52]} f6 {[%emt 0:00:09]} 39. hxg5 {[%emt 0:03:09]} fxg5 {[%emt 0:00:03]} 40. Kf2 {[%emt 0:00:28]} h4 {[%emt 0:02:04]} 41. b5 {[%emt 0:01:01]} Ke5 {[%emt 0:02:05]} 42. Rg1 {[%emt 0:00:29]} Kf4 {[%emt 0:00:22]} 43. Rd1 {[%emt 0:00:40]} d3 {[%emt 0:05:33]} 44. b6 {[%emt 0:00:36]} g4 {[%emt 0:05:36]} 45. fxg4 {[%emt 0:00:20]} h3 {[%emt 0:00:04]} 46. b7 {[%emt 0:00:22]} h2 {[%emt 0:00:19]} 47. Rf1 {[%emt 0:00:47]} d2 {[%emt 0:02:27]} 48. Kg2+ {[%emt 0:01:03]} Ke3 {[%emt 0:00:09]} 49. Rb1 {[%emt 0:00:00]} d1=Q {[%emt 0:02:59]} 50. b8=Q {[%emt 0:00:29]} h1=Q+ {[%emt 0:00:24]} 0-1